Workbook

Sheet 使い方
A1: 家族の夏休み・スケジュール・予算管理表 の使い方
A2: 家族みんなの夏休みのスケジュール管理と、予算管理が一度にできるテンプレートです。家計簿とは別に、夏休みの様々なイベントにかかる予算を把握することができます。

Sheet 予算管理票
A1: 家族の夏休みスケジュール・予算管理票
A3: 総予算 | D3: ¥200,000
A4: みんなの 予定 | B4: 2011-07-20 | D4: みんなでプールに行く | M4: 2,000
B5: 2011-08-01 | D5: 花火大会 | M5: 3,000
B6: 2011-08-16 | D6: ~8月18日 旅行 | M6: 100,000
A9: みんなの予定合計 | D9: =SUM(M4:M8) -> ¥105,000
A10: 残高 | D10: =D3-D9 -> ¥95,000
D11: 父 | F11: 母 | H11: けんた | J11: はなこ | L11: 子供３
A12: 7月 | B12: 2011-07-01 | C12: 金 | D12: 社員旅行 | E12: 20,000
B13: 2011-07-02 | C13: 土 | D13: 社員旅行
B14: 2011-07-03 | C14: 日
B15: 2011-07-04 | C15: 月
B16: 2011-07-05 | C16: 火
B17: 2011-07-06 | C17: 水
B18: 2011-07-07 | C18: 木
B19: 2011-07-08 | C19: 金
B20: 2011-07-09 | C20: 土
B21: 2011-07-10 | C21: 日
B22: 2011-07-11 | C22: 月
B23: 2011-07-12 | C23: 火
B24: 2011-07-13 | C24: 水
B25: 2011-07-14 | C25: 木
B26: 2011-07-15 | C26: 金
B27: 2011-07-16 | C27: 土
B28: 2011-07-17 | C28: 日
B29: 2011-07-18 | C29: 月
B30: 2011-07-19 | C30: 火
B31: 2011-07-20 | C31: 水
B32: 2011-07-21 | C32: 木
B33: 2011-07-22 | C33: 金
B34: 2011-07-23 | C34: 土 | F34: 友達とランチ | G34: 3,000
B35: 2011-07-24 | C35: 日 | F35: ショッピング | G35: 40,000
B36: 2011-07-25 | C36: 月
B37: 2011-07-26 | C37: 火
B38: 2011-07-27 | C38: 水 | H38: サッカー試合 | I38: 4,000
B39: 2011-07-28 | C39: 木
B40: 2011-07-29 | C40: 金
B41: 2011-07-30 | C41: 土 | J41: キャンプ | K41: 3,000
B42: 2011-07-31 | C42: 日
A43: 家族別合計 | D43: =SUM(E12:E42) -> 20,000 | F43: =SUM(G12:G42) -> 43,000 | H43: =SUM(I12:I42) -> 4,000 | J43: =SUM(K12:K42) -> 3,000 | L43: =SUM(M12:M42) -> 0
A44: 7月合計 | D44: =SUM(D43:M43) -> ¥70,000
A45: 残高 | D45: =D10-D44 -> ¥25,000
A46: 8月 | B46: 2011-08-01 | C46: 月 | E46: 2,000
B47: 2011-08-02 | C47: 火
B48: 2011-08-03 | C48: 水
B49: 2011-08-04 | C49: 木
B50: 2011-08-05 | C50: 金
B51: 2011-08-06 | C51: 土
B52: 2011-08-07 | C52: 日
B53: 2011-08-08 | C53: 月
B54: 2011-08-09 | C54: 火
B55: 2011-08-10 | C55: 水
B56: 2011-08-11 | C56: 木
B57: 2011-08-12 | C57: 金
B58: 2011-08-13 | C58: 土
B59: 2011-08-14 | C59: 日
B60: 2011-08-15 | C60: 月
B61: 2011-08-16 | C61: 火
B62: 2011-08-17 | C62: 水
B63: 2011-08-18 | C63: 木
B64: 2011-08-19 | C64: 金
B65: 2011-08-20 | C65: 土
B66: 2011-08-21 | C66: 日
B67: 2011-08-22 | C67: 月
B68: 2011-08-23 | C68: 火
B69: 2011-08-24 | C69: 水
B70: 2011-08-25 | C70: 木
B71: 2011-08-26 | C71: 金
B72: 2011-08-27 | C72: 土
B73: 2011-08-28 | C73: 日
B74: 2011-08-29 | C74: 月
B75: 2011-08-30 | C75: 火
B76: 2011-08-31 | C76: 水
A77: 家族別合計 | D77: =SUM(E46:E76) -> 2,000 | F77: =SUM(G46:G76) -> 0 | H77: =SUM(I46:I76) -> 0 | J77: =SUM(K46:K76) -> 0 | L77: =SUM(M46:M76) -> 0
A78: 8月合計 | D78: =SUM(D77:M77) -> ¥2,000
A79: 残高 | D79: =D45-D78 -> ¥23,000

Sheet DATA
A1: 家族の予算内訳グラフ
A2: =予算管理票!A4 -> みんなの 予定 | B2: =予算管理票!D9 -> 105,000
A3: =予算管理票!D11 -> 父 | B3: =予算管理票!D43+予算管理票!D77 -> 22,000
A4: =予算管理票!F11 -> 母 | B4: =予算管理票!F43+予算管理票!F77 -> 43,000
A5: =予算管理票!H11 -> けんた | B5: =予算管理票!H43+予算管理票!H77 -> 4,000
A6: =予算管理票!J11 -> はなこ | B6: =予算管理票!J43+予算管理票!J77 -> 3,000
A7: =予算管理票!L11 -> 子供３ | B7: =予算管理票!L43+予算管理票!L77 -> 0
